Cogmind - Beta 16.1 @@@ ROGUE MODE // 2026.03.16 @ 12:17:39 Player: Ragnakor Result: Destroyed by CQ-B0B(R) with Subdweller Machine Gun Performance ------------- Evolutions (0) 0 Regions Visited (2) 400 Robots Destroyed (19) 95 Value Destroyed (548) 548 Prototype IDs (0) 0 Alien Tech Used (0) 0 Bonus (0) 0 TOTAL SCORE: 1043 Bonus ------- None Cogmind --------- Core Integrity 0/250 Matter 283/300 Energy 55/100 System Corruption 2% Temperature Cool (0) Movement Rolling (110) Location -10/Subcaves Parts ------- > --- POWER (1) -------- (None) > --- PROPULSION (2) --- Subdweller Monowheel > --- UTILITY (2) ------ Small Storage Unit ECM Suite > --- WEAPON (2) ------- Mini Grenade Launcher Makeshift Spear > --- INVENTORY (8) ---- Light Ion Engine Flight Unit Subdweller Optics Signal Interpreter Light Assault Rifle Datajack Peak State ------------ > --- POWER ------------ Light Ion Engine > --- PROPULSION ------- Aluminum Leg Subdweller Monowheel > --- UTILITY ---------- Small Storage Unit ECM Suite > --- WEAPON ----------- Light Assault Rifle Makeshift Spear > --- INVENTORY -------- Light Ion Engine Light Ion Engine Flight Unit Subdweller Optics Signal Interpreter Light Assault Rifle Mini Grenade Launcher Datajack [Rating: 12] Favorites ----------- Power Light Ion Engine Engine Light Ion Engine Power Core Light Nuclear Core Propulsion Aluminum Leg Leg Aluminum Leg Wheel Subdweller Monowheel Utility Small Storage Unit Device ECM Suite Storage Small Storage Unit Weapon Light Assault Rifle Ballistic Gun Light Assault Rifle Launcher Rocket Launcher Special Weapon Flamer Piercing Weapon Makeshift Spear Build | -11 -10 -10 ------- Run | Yrd Mat Sub Slots Evolved . | . . . Power . | . . . Propulsion . | . . . Utility . | . . . Weapon . | . . . Parts Attached 21 | 7 10 4 Power 5 | 1 4 . Engine 4 | 1 3 . Core 1 | . 1 . Reactor . | . . . Propulsion 6 | 2 3 1 Treads . | . . . Leg 5 | 2 3 . Wheel 1 | . . 1 Hover . | . . . Flight . | . . . Utility 3 | 2 1 . Device 2 | 1 1 . Storage 1 | 1 . . Processor . | . . . Hackware . | . . . Protection . | . . . Artifact . | . . . Weapon 7 | 2 2 3 Energy Gun . | . . . Energy Cannon . | . . . Ballistic Gun 3 | 2 1 . Ballistic Cannon . | . . . Launcher 2 | . 1 1 Special Weapon 1 | . . 1 Impact Weapon . | . . . Slashing Weapon . | . . . Piercing Weapon 1 | . . 1 Special Melee Weapon . | . . . Unidentified Prototypes . | . . . Parts Lost 7 | . 2 5 Power 2 | . . 2 Propulsion 2 | . 1 1 Utility 1 | . 1 . Weapon 2 | . . 2 Highest Loss Streak 4 | . 1 4 To Critical Strikes . | . . . Average Backups 7 | 2 7 7 Power 2 | . 2 1 Propulsion . | . 1 1 Utility . | . . 1 Weapon 2 | . 2 2 Tool/Special . | . . . Unused Backups 7 | . 2 5 Power 2 | . 1 1 Propulsion 2 | . 1 1 Utility 2 | . . 2 Weapon . | . . . Tool/Special 1 | . . 1 Average Slot Usage (%) 90 | . 92 88 Engine 11 | . 10 13 Core 2 | . 3 . Leg 18 | . 22 13 Wheel 1 | . . 4 Device 13 | . 12 14 Storage 13 | . 13 14 Ballistic Gun 21 | . 27 13 Special Weapon 1 | . . 4 Piercing Weapon 3 | . . 8 Peak Build Rating 12 | 9 11 12 Average Rating 8 | 5 8 9 On Entrance 5 | . 9 7 Avg Prop Armor Cover (%) 12 | . . 12 Naked Turns . | . . . Heaviest Build 16 | 11 15 16 Greatest Support 20 | 20 20 20 Greatest Overweight (x) 3 | 1 3 1 Average Overweight (x) . | . . . Largest Inventory Capacity 8 | 8 8 8 Average Capacity 7 | 7 7 8 Most Carried 8 | 4 8 8 Average Carried 7 | 2 7 7 Final Capacity 8 | 8 8 8 Final Carried 8 | 4 8 6 Class Distribution -------------------- 100% | Mutant Dominant Class ---------------- Mutant | -10/Materials Mutant | -10/Subcaves Resources | -11 -10 -10 ----------- Run | Yrd Mat Sub Matter Collected 730 | 258 290 182 Remotely . | . . . Salvage Created 500 | 101 310 89 Parts 34 | 8 18 8 Haulers Intercepted . | . . . Recyclers Shooed . | . . . Parts Field Recycled . | . . . Retrieved Matter . | . . . Parts Self-Destructed 5 | . . 5 Prevented . | . . . Parts Restored . | . . . Kills | -11 -10 -10 ------- Run | Yrd Mat Sub Combat Hostiles Destroyed 13 | . 9 4 Melee 1 | . . 1 Guns 7 | . 7 . AOE 5 | . 2 3 Classes Destroyed 7 | 2 4 1 Tunneler 2 | 2 . . Recycler 1 | 1 . . Operator 1 | . 1 . Watcher 2 | . 2 . Swarmer 3 | . 3 . Grunt 6 | . 6 . Subdweller 4 | . . 4 Best Kill Streak 3 | 2 3 3 Combat Bots Only 3 | . 3 3 Max Kills in Single Turn 2 | 2 1 1 Gunslinging . | . . . Exploded 1 | . 1 1 Melee 1 | . . 1 Uniques/NPCs Destroyed . | . . . Combat | -11 -10 -10 -------- Run | Yrd Mat Sub Hostile Shots Fired 68 | . 50 18 Missed 14 | . 10 4 Hits 54 | . 40 14 Projectile 54 | . 40 14 AOE 3 | . . 3 Critical Strikes 4 | . 4 . Damage Taken 1142 | . 657 485 Core 255 | . 74 181 Absorbed by Shields . | . . . Regen/Repaired (Parts) 69 | . 69 . Core Remaining (%) 100 | 100 . . Volleys Fired 97 | 22 63 12 Largest 2 | 2 2 2 Hottest 100 | 40 53 100 Shots Fired 186 | 44 126 16 Gun 175 | 44 123 8 Cannon . | . . . Launcher 8 | . 3 5 Special 3 | . . 3 Kinetic 175 | 44 123 8 Thermal 3 | . . 3 Explosive 8 | . 3 5 Electromagnetic . | . . . Robot Hit Streak 7 | 5 7 2 Robot Miss Streak 5 | 2 5 1 Penetration Max . | . . . Secondary Targets . | . . . Shots Hit Robots 102 | 25 70 7 Core Hits 41 | 8 27 6 Critical Kills . | . . . Critical Parts Destroyed 1 | . 1 . Critical Strikes 1 | . 1 . Destroy 1 | . 1 . Melee Attacks 20 | . . 20 Impact . | . . . Slashing . | . . . Piercing 20 | . . 20 Sneak Attacks . | . . . Combat Hostiles . | . . . Follow-up Attacks . | . . . Damage Inflicted 1330 | 228 786 316 Guns 774 | 228 546 . Cannons . | . . . Explosions 477 | . 235 242 Melee 54 | . . 54 Ramming 5 | . 5 . Kinetic 774 | 228 546 . Thermal 107 | . 87 20 Explosive 390 | . 148 242 Electromagnetic . | . . . Impact . | . . . Slashing . | . . . Piercing 54 | . . 54 Highest Corruption 2 | . 2 2 Average Corruption 2 | . 2 2 Corruption Purged . | . . . Corruption Blocked . | . . . Effects 26 | . 10 16 Message Errors 10 | . 3 7 Matter Fused 3 | . 1 2 Heat Flow Errors 4 | . 2 2 Energy Discharges 1 | . . 1 Parts Rejected 1 | . 1 . Data Loss (minor) 5 | . 2 3 Data Loss (major) 2 | . 1 1 Overload Shots . | . . . Overflow Damage 85 | . 85 . Projectiles . | . . . Explosions 85 | . 85 . Melee . | . . . Knockbacks . | . . . Impact . | . . . Kinetic . | . . . Secondary . | . . . Self-Inflicted Damage 280 | . 181 99 Shots 6 | . 3 3 Rammed . | . . . Targets Rammed 2 | . 2 . Kicked 2 | . 2 . Crushed . | . . . Highest Temperature 246 | . 246 199 Average Temperature 56 | . 53 99 Received Heat Transfer 321 | . 309 12 Siege Activations . | . . . Martial Activations . | . . . Shielding Activations . | . . . Robots Disrupted . | . . . Combat Hostiles . | . . . Robots Corrupted . | . . . Combat Hostiles . | . . . Parts Fried . | . . . Impact Corruptions . | . . . Robots Melted . | . . . Combat Hostiles . | . . . Parts Melted . | . . . Heat Transferred 210 | . 50 160 Parts Sabotaged . | . . . Parts Stolen . | . . . Parts Stripped . | . . . Power Chain Reactions . | . . . Alert | -11 -10 -10 ------- Run | Yrd Mat Sub Maximum Alert Level 1 | . 1 . Low Security (%) 94 | 100 93 . Level 1 5 | . 6 . Level 2 . | . . . Level 3 . | . . . Level 4 . | . . . Level 5 . | . . . High Security . | . . . Max Security . | . . . Peak Influence 225 | 10 225 . Initial . | . . . Average 67 | . 73 . Influence Increases 454 | 15 439 . Destroy 0b10 Robot/C 180 | . 180 . Destroy 0b10 Robot/NC 30 | 15 15 . Destroy Leader 34 | . 34 . Successful Hack 32 | . 32 . Disable Machine 90 | . 90 . Destroy Structure 88 | . 88 . Influence Decreases 454 | 15 325 114 Entered New Map 55 | . . 55 Time Decay 379 | 15 305 59 Lost Part 20 | . 20 . Squads Dispatched . | . . . Investigation . | . . . Extermination . | . . . Reinforcement . | . . . Assault . | . . . Garrison . | . . . Intercept . | . . . Searches Triggered . | . . . Construction Impeded . | . . . Haulers Reinforced . | . . . Active Scanning Responses . | . . . Cargo Convoy Interrupts . | . . . Stealth | -11 -10 -10 --------- Run | Yrd Mat Sub Distress Signals 1 | . 1 . Communications Jammed . | . . . Distress Signals . | . . . Times Spotted 22 | . 17 5 Peak Tracking Total 4 | . 4 3 Tactical Retreats . | . . . Traps | -11 -10 -10 ------- Run | Yrd Mat Sub Traps Triggered 2 | . 2 . Indirectly . | . . . Trap Hack Attempts . | . . . Triggered . | . . . Disarmed . | . . . Reprogrammed . | . . . Reused . | . . . Traps Extracted . | . . . Installed . | . . . Triggered . | . . . Machines | -11 -10 -10 ---------- Run | Yrd Mat Sub Machines Disabled 6 | . 6 . Max in Single Turn 5 | . 5 . Machines Repaired . | . . . Machines Dismantled . | . . . Machines Sabotaged . | . . . Overloaded Fab Kills . | . . . Hacking | -11 -10 -10 --------- Run | Yrd Mat Sub Machines Accessed 10 | . 10 . Terminals 7 | . 7 . Fabricators . | . . . Repair Stations 1 | . 1 . Recycling Units 2 | . 2 . Scanalyzers . | . . . Garrison Access . | . . . Total Hacks 32 | . 32 . Successful 18 | . 18 . Failed 14 | . 14 . Catastrophic . | . . . Database Lockouts . | . . . Manual 19 | . 19 . Terminals 24 | . 24 . Fabricators . | . . . Repair Stations 4 | . 4 . Recycling Units 4 | . 4 . Scanalyzers . | . . . Garrison Access . | . . . Terminal Hacks 3 | . 3 . Record 1 | . 1 . Hauler Manifests 1 | . 1 . Registered Components 1 | . 1 . Fabricator Hacks . | . . . Repair Station Hacks 2 | . 2 . Scan Component 1 | . 1 . Repair 1 | . 1 . Recycling Unit Hacks 2 | . 2 . Report Inventory 2 | . 2 . Scanalyzer . | . . . Garrison Access Hacks . | . . . Unauthorized Hacks 11 | . 11 . Terminals 10 | . 10 . Track 1 | . 1 . Assimilate 1 | . 1 . Botnet 6 | . 6 . Operators 2 | . 2 . Fabricators . | . . . Repair Stations 1 | . 1 . Mechanics 1 | . 1 . Recycling Units . | . . . Scanalyzers . | . . . Garrison Access . | . . . Data Cores Recovered . | . . . Used . | . . . Hacking Detections 9 | . 9 . Full Trace Events . | . . . Feedback Events . | . . . Feedback Blocked . | . . . Robot Schematics Acquired . | . . . Robots Built . | . . . Authchips . | . . . Time . | . . . Total Robot Build Rating . | . . . Part Schematics Acquired . | . . . Parts Built . | . . . Authchips . | . . . Time . | . . . Total Part Build Rating . | . . . Part Studies Acquired . | . . . Parts Repaired 1 | . 1 . Time 26 | . 26 . Parts Recycled . | . . . Recycled Matter . | . . . Retrieved Matter . | . . . Retrieved Components . | . . . Parts Scanalyzed . | . . . Part Schematics Acquired . | . . . Parts Damaged . | . . . Bothacking | -11 -10 -10 ------------ Run | Yrd Mat Sub Used RIF Installer . | . . . Robots Hacked . | . . . Non-combat . | . . . Combat . | . . . Robot Hacks Applied . | . . . Relay Couplers Released . | . . . Fabnet Peak Effective % . | . . . Robots Rewired . | . . . Allies Hacked . | . . . Hacks Repelled . | . . . Allies | -11 -10 -10 -------- Run | Yrd Mat Sub Total Allies . | . . . Largest Group . | . . . Highest-Rated Group . | . . . Highest-Rated Ally . | . . . Total Orders . | . . . Ally Attacks . | . . . Total Damage . | . . . Kills . | . . . Allies Corrupted . | . . . Allies Melted . | . . . Intel | -11 -10 -10 ------- Run | Yrd Mat Sub Active Infowar (turns) 2930 | 20 1511 1399 Terrain 380 | 20 360 . ECM 2550 | . 1151 1399 Robot Analysis Total . | . . . Derelict Logs Recovered 1 | . . 1 Drone Launches . | . . . Drone Recoveries . | . . . Exploration | -11 -10 -10 ------------- Run | Yrd Mat Sub Turns Passed 3234 | 151 1684 1399 Spaces Moved 1909 | 70 1001 838 Core 9 | 7 2 . Treads . | . . . Legs 1550 | 63 999 488 Wheels 350 | . . 350 Hover . | . . . Flight . | . . . Fastest Speed 50 | 50 120 110 Average Speed 148 | 113 143 156 Slowest Speed 200 | 120 200 190 Overloaded Moves . | . . . Propulsion Burnouts . | . . . Robots Hopped . | . . . Potential Cave-ins . | . . . Cave-ins Triggered . | . . . Exploration Rate (%) 50 | 4 98 50 Regions Visited 2 Branch Regions 1 Pre-discovered Areas . | . . . Known Exits Taken . | . . . Unknown Exits Taken 2 | 1 1 . Scrap Searched 3 | . . 3 Spaces Dug 5 | . . 5 Terrain Destroyed 109 | . 90 19 Melee 5 | . . 5 Projectile . | . . . AOE 104 | . 90 14 Terrain Rammed . | . . . Walls Destroyed . | . . . Machines Disabled . | . . . Actions | -11 -10 -10 --------- Run | Yrd Mat Sub Total 2130 | 102 1142 886 Wait 56 | . 48 8 Move 1907 | 69 1000 838 Hop . | . . . Pick Up 12 | 4 7 1 Fast Attach 14 | 7 6 1 Attach 3 | . . 3 Detach . | . . . Swap 13 | . 10 3 Drop 6 | . 6 . Fire 97 | 22 63 12 Melee 20 | . . 20 Ram . | . . . Kick 2 | . 2 . Crush . | . . . Escape Stasis . | . . . Rewire . | . . . Trap . | . . . Miscellaneous . | . . . Route ------- -11/Scrapyard -10/Materials (discovered 6 exits: [*Mat x3] / [*Min x2] / [*Sub]) -10/Subcaves (discovered 1 exit: [*Mat]) History --------- Turn | Location | Event 30 | -11/Scrapyard | Discovered new exit (range 16) 152 | -11/Scrapyard | Entered Materials 263 | -10/Materials | Discovered new exit (range 12) 309 | -10/Materials | Build established: Mutant 372 | -10/Materials | Discovered new exit (range 9) 601 | -10/Materials | Repaired Sml. Storage Unit 846 | -10/Materials | Discovered new exit (range 9) 910 | -10/Materials | Discovered new exit (range 16) 977 | -10/Materials | Discovered new exit (range 14) 1107 | -10/Materials | Discovered new exit (range 15) 1836 | -10/Materials | Entered Subcaves 1837 | -10/Subcaves | Approached by a straggling Scientist 1936 | -10/Subcaves | Discovered new exit (range 7) 2456 | -10/Subcaves | A swath of the cavern ceiling suddenly collapsed 2804 | -10/Subcaves | Core integrity fell below 50% 3116 | -10/Subcaves | A swath of the cavern ceiling suddenly collapsed 3233 | -10/Subcaves | Core integrity fell below 20% 3235 | -10/Subcaves | Destroyed by CQ-B0B(R) with Subdweller Machine Gun Last Messages --------------- 02807_ 3Z-PCI(R) destroyed. 02812_ Acquired Sub. Optics. 02813_ Acquired 14 matter. 02815_ Subatomizers dissect the Sub. Monowheel. 02817_ Acquired Sub. Monowheel. 02818_ Acquired 10 matter. 03006_ B R>GRR#,,>GFA4LQ,T1 03049_ System corrupted: Component data lost. 03076_ VYKH9&CSZL=VNGH7QDP0OAZVNI#JGAZ3P88TP A swath of the cavern ceiling suddenly collapses. 03123_ System corrupted: Heat flow error (+199). 03214_ Aluminum Leg destroyed. 03214_ Lgt. Ion Engine destroyed. 03218_ Lgt. Assault Rifle destroyed. 03219_ D4-JXS(R) destroyed. 03221_ E8-17T(R) destroyed. 03231_ Acquired 31 matter. 03233_ Acquired 3 matter. 03234_ YO-9KB(R) destroyed. Map ----- +----------------------------------------------------+ | ?????????????????????????????????????????????????? | | ?????????????????????????????????????????????????? | | ?????????????????????????????????????????????????? | | ?????????????????????????????????? ??????????????? | | ?????????????????????????????????? ????????????? | | ????????????????????????????????? ????????????? | | ????????????????????????????????? ????????????? | | ????????????????????????????????? ????????????? | | ????????????????????? ???????## ?????????????? | | ???????????????????? #??### ?????????????? | | ??????????????????? ??# ??????????????? | | ??????????????????? "### ???????????????? | | ??????????????????? """ ###?????????????? | | ????????????????????# """ ;#?????????????? | | ????????????????????# "" ##????????????? | | ???????????????????## " #????????????? | | ??????????????????## #????????????? | | ????????????##????# " % #????????????? | | ????????########??# ##????????????? | | ?????####"" " #"####### #?????????????? | | ????##"" "#" ###"#????# "" #?????????????? | | ????##"##### #"""###### " #?????????????? | | ????##""""## #""""## # ###?????????????? | | ????##"#"#"#"####"#;# ####???????????????? | | ???##""""#""##?#;;;#R ! #??????????????????? | | ??## #"""""#??##""#; @ "#??????????????????? | | ??# ""#"##?##""#### =&! ""#??????????????????? | | ??# ""##?## " ## "#??????????????????? | | ??### #??# ##??????????????????? | | ???## ##### # #???????????????????? | | ???# # # #######???????????????????? | | ???## ##????????????????????????? | | ????# #### #????????????????????????? | | ????# # # #??# ""#???????????????????????? | | ????# ##### #?# ""##???????????????????????? | | ????## #???# ### ##????????????????????????? | | ????## #??? #" ?????????????????????????? | | ????# #?? ? ????????????????????????? | | ????# ## #?#?????? # ????????????????????????? | | ???## ####????????? ###???????????????????????? | | ?### #????????????? #?????????????????????????? | | ## # #????????????? #?????????????????????????? | | # #?????? ?????? ##?????????????????????????? | | # ###???### ??????#???????????????????????????? | | # #????# ? #????????????????????????????????? | | ## #??? ###??????????????????????????????? | | ## ##???# # ##?????????????????????????????? | | # ###??# # #?????????????????????????????? | | #??# # #?????????????? ?????????????? | | #??# ##???????????## ?????????????? | +----------------------------------------------------+ Best States ------------- Heat Dissipation 25 Energy Generation 14 Energy Capacity 265 Matter Stores 300 Matter Capacity 300 Sight Range 16 Terrain Scan Range 16 Terrain Scan Density 10 ECM Strength 1 Evasion (%) 55 Item Schematics ----------------- None Robot Schematics ------------------ None Fabricated ------------ Nothing Repaired ---------- Sml. Storage Unit | 54% | -10/Materials Studied --------- None Alien Tech Used ----------------- None Achievements -------------- None Challenges ------------ None Game ------ Seed TeleporterThrowingFalx Manual? 0 Play Time 00:19:54 Cumulative 31.8 hours Start 2026.03.16 @ 12:00:08 End 2026.03.16 @ 12:17:39 Sessions 1 Manual Loads 0 Difficulty Rogue Special Mode None Game No. 60 Rogue 60 Adventurer 0 Explorer 0 Win Type - Total 0 Types 0/0/0/0/0/0/0/0/0/0 Lore% 29 Gallery% 25 Achievement% 22 Wizard Run 0 Options --------- Layout 1 ASCII 0 Keyboard 0 Movement Numpad Keybinds 0 Fullscreen 1 Font 24/Smallcaps Map View 50x35 Zoom Use 0% Tactical HUD 1 Map Filters NONE Filters NONE Steam 1 RUN: 2edbf10b-0105-4ffb-a1d4-1251c44880e9